fUSD/lending_fUSD_20250103
["ID","MTS","AMOUNT","RATE_DAILY","PERIOD"]
[347566544,1735920642373,-500.0,9.591e-05,2]
[347566546,1735920642382,-500.0,9.591e-05,2]
[347566548,1735920642391,-500.0,9.591e-05,2]
[347566550,1735920642401,-500.0,9.591e-05,2]
[347566552,1735920642413,-500.0,9.591e-05,2]
[347566555,1735920642422,-500.0,9.591e-05,2]
[347566557,1735920642432,-500.0,9.591e-05,2]
[347566559,1735920642443,-500.0,9.591e-05,2]
[347566561,1735920642453,-535.69,9.591e-05,2]
[347566563,1735920642462,-500.0,9.591e-05,2]
[347566564,1735920642471,-500.0,9.591e-05,2]
[347566566,1735920642481,-500.0,9.591e-05,2]
[347566568,1735920642490,-500.0,9.591e-05,2]
[347566570,1735920642499,-500.0,9.591e-05,2]
[347566572,1735920642509,-500.0,9.591e-05,2]
[347566574,1735920642519,-500.0,9.591e-05,2]
[347566576,1735920642529,-500.92,9.591e-05,2]
[347566578,1735920642538,-500.0,9.591e-05,2]
[347566580,1735920642547,-665.42,9.591e-05,2]
[347566582,1735920642556,-500.0,9.591e-05,2]
[347566584,1735920642565,-500.0,9.591e-05,2]
[347566586,1735920642575,-500.0,9.591e-05,2]
[347566588,1735920642584,-500.0,9.591e-05,2]
[347566590,1735920642593,-500.0,9.591e-05,2]
[347566592,1735920642602,-500.0,9.591e-05,2]
[347566594,1735920642611,-500.0,9.591e-05,2]
[347566596,1735920642620,-1037.06,9.591e-05,2]
[347566598,1735920642630,-500.0,9.591e-05,2]
[347566600,1735920642639,-500.0,9.591e-05,2]
[347566602,1735920642648,-500.0,9.591e-05,2]
[347566604,1735920642658,-500.0,9.591e-05,2]
[347566606,1735920642669,-500.0,9.591e-05,2]
[347566608,1735920642678,-500.0,9.591e-05,2]
[347566610,1735920642687,-500.0,9.591e-05,2]
[347566612,1735920642696,-805.79,9.591e-05,2]
[347566614,1735920642706,-3679.18,9.591e-05,2]
[347566616,1735920642715,-500.0,9.591e-05,2]
[347566618,1735920642725,-500.0,9.591e-05,2]
[347566620,1735920642734,-547.14,9.591e-05,2]
[347566622,1735920642744,-500.0,9.591e-05,2]
[347566624,1735920642753,-500.0,9.591e-05,2]
[347566626,1735920642762,-500.0,9.591e-05,2]
[347566628,1735920642772,-500.0,9.591e-05,2]
[347566630,1735920642781,-500.0,9.591e-05,2]
[347566633,1735920642790,-500.0,9.591e-05,2]
[347566635,1735920642799,-500.0,9.591e-05,2]
[347566637,1735920642809,-500.0,9.591e-05,2]
[347566639,1735920642818,-500.0,9.591e-05,2]
[347566641,1735920642827,-500.0,9.591e-05,2]
[347566644,1735920642837,-500.0,9.591e-05,2]
[347566646,1735920642846,-500.0,9.591e-05,2]
[347566648,1735920642855,-500.0,9.591e-05,2]
[347566650,1735920642865,-500.0,9.591e-05,2]
[347566652,1735920642874,-3247.25,9.591e-05,2]
[347566654,1735920642883,-500.0,9.591e-05,2]
[347566656,1735920642893,-500.0,9.591e-05,2]
[347566658,1735920642902,-500.0,9.591e-05,2]
[347566660,1735920642911,-500.0,9.591e-05,2]
[347566662,1735920642922,-500.0,9.591e-05,2]
[347566664,1735920642932,-500.0,9.591e-05,2]
[347566666,1735920642941,-500.0,9.591e-05,2]
[347566669,1735920642950,-500.0,9.591e-05,2]
[347566671,1735920642961,-500.0,9.591e-05,2]
[347566673,1735920642970,-500.0,9.591e-05,2]
[347566675,1735920642980,-500.0,9.591e-05,2]
[347566677,1735920642992,-500.0,9.591e-05,2]
[347566679,1735920643002,-500.0,9.591e-05,2]
[347566681,1735920643012,-500.0,9.591e-05,2]
[347566683,1735920643022,-573.63,9.591e-05,2]
[347566685,1735920643031,-500.0,9.591e-05,2]
[347566688,1735920643041,-500.0,9.591e-05,2]
[347566692,1735920643051,-500.0,9.591e-05,2]
[347566695,1735920643060,-1890.49,9.591e-05,2]
[347566699,1735920643070,-500.0,9.591e-05,2]
[347566703,1735920643080,-500.0,9.591e-05,2]
[347566708,1735920643089,-500.0,9.591e-05,2]
[347566711,1735920643098,-629.81932155,9.591e-05,2]
[347566713,1735920643108,-500.0,9.591e-05,2]
[347566717,1735920643117,-1003.54,9.591e-05,2]
[347566721,1735920643127,-329.47,9.591e-05,2]
[347566724,1735920643136,-500.0,9.591e-05,2]
[347566726,1735920643146,-500.0,9.591e-05,2]
[347566728,1735920643155,-500.0,9.591e-05,2]
[347566730,1735920643165,-248.13,9.591e-05,2]
[347566732,1735920643179,-500.0,9.591e-05,2]
[347566733,1735920643188,-500.0,9.591e-05,2]
[347566736,1735920643197,-500.0,9.591e-05,2]
[347566738,1735920643207,-500.0,9.591e-05,2]
[347566740,1735920643217,-500.0,9.591e-05,2]
[347566742,1735920643227,-500.0,9.591e-05,2]
[347566744,1735920643236,-500.0,9.591e-05,2]
[347566746,1735920643246,-500.0,9.591e-05,2]
[347566747,1735920643255,-1000.65,9.591e-05,2]
[347566749,1735920643266,-500.0,9.591e-05,2]
[347566752,1735920643276,-500.0,9.591e-05,2]
[347566754,1735920643286,-500.0,9.591e-05,2]
[347566755,1735920643295,-500.0,9.591e-05,2]
[347566758,1735920643306,-1907.21,9.591e-05,2]
[347566759,1735920643315,-500.0,9.591e-05,2]
[347566762,1735920643326,-500.0,9.591e-05,2]
[347566763,1735920643336,-500.0,9.591e-05,2]
[347566765,1735920643345,-500.0,9.591e-05,2]
[347566767,1735920643355,-500.0,9.591e-05,2]
[347566769,1735920643365,-500.0,9.591e-05,2]
[347566771,1735920643374,-441.7,9.591e-05,2]
[347566774,1735920643384,-582.38,9.591e-05,2]
[347566776,1735920643394,-582.22,9.591e-05,2]
[347566778,1735920643404,-500.0,9.591e-05,2]
[347566780,1735920643414,-500.0,9.591e-05,2]
[347566782,1735920643423,-500.0,9.591e-05,2]
[347566784,1735920643436,-500.0,9.591e-05,2]
[347566785,1735920643449,-500.0,9.591e-05,2]
[347566786,1735920643458,-500.0,9.591e-05,2]
[347566787,1735920643468,-2353.53,9.591e-05,2]
[347566788,1735920643478,-500.0,9.591e-05,2]
[347566791,1735920643489,-3206.61,9.591e-05,2]
[347566793,1735920643499,-1965.81,9.591e-05,2]
[347566795,1735920643509,-500.0,9.591e-05,2]
[347566797,1735920643519,-500.0,9.591e-05,2]
[347566799,1735920643529,-385.92,9.591e-05,2]
[347566801,1735920643538,-591.11,9.591e-05,2]
[347566803,1735920643548,-500.0,9.591e-05,2]
[347566805,1735920643557,-500.0,9.591e-05,2]
[347566807,1735920643567,-500.0,9.591e-05,2]
[347566809,1735920643576,-568.02,9.591e-05,2]
[347566811,1735920643586,-500.0,9.591e-05,2]
[347566813,1735920643596,-500.0,9.591e-05,2]
[347566815,1735920643605,-500.0,9.591e-05,2]
[347566817,1735920643615,-500.0,9.591e-05,2]
[347566819,1735920643624,-500.0,9.591e-05,2]
[347566821,1735920643637,-500.0,9.591e-05,2]
[347566823,1735920643647,-500.0,9.591e-05,2]
[347566825,1735920643657,-500.0,9.591e-05,2]
[347566827,1735920643669,-798.62,9.591e-05,2]
[347566829,1735920643678,-500.0,9.591e-05,2]
[347566831,1735920643690,-500.0,9.591e-05,2]
[347566833,1735920643700,-598.94,9.591e-05,2]
[347566835,1735920643710,-500.0,9.591e-05,2]
[347566837,1735920643720,-500.0,9.591e-05,2]
[347566840,1735920643730,-500.0,9.591e-05,2]
[347566842,1735920643740,-500.0,9.591e-05,2]
[347566844,1735920643750,-320.55,9.592e-05,2]
[347566846,1735920643759,-200.96,9.592e-05,2]
[347566848,1735920643769,-500.0,9.592e-05,2]
[347566850,1735920643778,-230.46,9.592e-05,2]
[347566852,1735920643788,-500.0,9.592e-05,2]
[347566854,1735920643797,-500.0,9.592e-05,2]
[347566856,1735920643806,-613.59,9.592e-05,2]
[347566858,1735920643816,-500.0,9.592e-05,2]
[347566860,1735920643825,-559.37,9.592e-05,2]
[347566862,1735920643835,-432.26,9.592e-05,2]
[347566864,1735920643844,-173.16,9.592e-05,2]
[347566866,1735920643854,-195.16,9.592e-05,2]
[347566868,1735920643864,-500.0,9.592e-05,2]
[347566870,1735920643874,-373.37,9.592e-05,2]
[347566872,1735920643883,-165.02,9.592e-05,2]
[347566874,1735920643893,-470.14,9.592e-05,2]
[347566876,1735920643903,-609.01,9.592e-05,2]
[347566878,1735920643913,-500.0,9.592e-05,2]
[347566880,1735920643923,-435.57,9.592e-05,2]
[347566882,1735920643934,-286.23,9.592e-05,2]
[347566884,1735920643943,-500.0,9.592e-05,2]
[347566886,1735920643953,-500.0,9.592e-05,2]
[347566888,1735920643963,-325.82,9.592e-05,2]
[347566890,1735920643973,-500.0,9.592e-05,2]
[347566892,1735920643983,-500.0,9.592e-05,2]
[347566894,1735920643992,-339.28,9.592e-05,2]
[347566896,1735920644002,-500.0,9.592e-05,2]
[347566898,1735920644012,-500.0,9.592e-05,2]
[347566900,1735920644022,-500.0,9.592e-05,2]
[347566902,1735920644032,-500.0,9.592e-05,2]
[347566904,1735920644042,-500.0,9.592e-05,2]
[347566906,1735920644051,-500.0,9.592e-05,2]
[347566908,1735920644062,-613.5,9.592e-05,2]
[347566910,1735920644071,-500.0,9.592e-05,2]
[347566912,1735920644081,-200.79,9.592e-05,2]
[347566914,1735920644091,-249.95,9.592e-05,2]
[347566916,1735920644101,-181.5,9.592e-05,2]
[347566918,1735920644111,-273.73,9.592e-05,2]
[347566920,1735920644121,-500.0,9.592e-05,2]
[347566922,1735920644130,-615.66,9.592e-05,2]
[347566924,1735920644141,-642.2,9.592e-05,2]
[347566926,1735920644151,-592.17,9.592e-05,2]
[347566928,1735920644163,-355.86,9.592e-05,2]
[347566930,1735920644175,-221.54,9.592e-05,2]
[347566932,1735920644185,-500.0,9.592e-05,2]
[347566934,1735920644195,-500.0,9.592e-05,2]
[347566936,1735920644205,-169.7,9.592e-05,2]
[347566938,1735920644215,-500.0,9.592e-05,2]
[347566940,1735920644225,-500.0,9.592e-05,2]
[347566942,1735920644235,-500.0,9.592e-05,2]
[347566944,1735920644245,-458.87,9.592e-05,2]
[347566946,1735920644256,-500.0,9.592e-05,2]
[347566948,1735920644265,-299.84,9.592e-05,2]
[347566950,1735920644275,-500.0,9.592e-05,2]
[347566953,1735920644286,-500.0,9.592e-05,2]
[347566955,1735920644296,-452.7,9.592e-05,2]
[347566957,1735920644305,-276.56,9.592e-05,2]
[347566959,1735920644315,-500.0,9.592e-05,2]
[347566961,1735920644325,-500.0,9.592e-05,2]
[347566963,1735920644335,-223.45,9.592e-05,2]
[347566965,1735920644344,-500.0,9.592e-05,2]
[347566967,1735920644355,-500.0,9.592e-05,2]
[347566969,1735920644364,-576.5,9.592e-05,2]
[347566971,1735920644374,-849.16,9.592e-05,2]
[347566973,1735920644384,-864.54,9.592e-05,2]
[347566975,1735920644393,-1768.71,9.592e-05,2]
[347566977,1735920644404,-979.98,9.592e-05,2]
[347566979,1735920644414,-3231.62,9.592e-05,2]
[347566980,1735920644423,-1050.79,9.592e-05,2]
[347566982,1735920644433,-1684.23,9.592e-05,2]
[347566985,1735920644443,-1281.84,9.592e-05,2]
[347566987,1735920644453,-786.12,9.592e-05,2]
[347566989,1735920644463,-500.0,9.592e-05,2]
[347566991,1735920644473,-1902.76,9.592e-05,2]
[347566993,1735920644483,-1794.52,9.593e-05,2]
[347566995,1735920644493,-2214.82,9.593e-05,2]
[347566997,1735920644503,-3042.37,9.593e-05,2]
[347566999,1735920644512,-500.0,9.593e-05,2]
[347567001,1735920644522,-191.63,9.593e-05,2]
[347567003,1735920644531,-343.81,9.593e-05,2]
[347567005,1735920644541,-375.58,9.593e-05,2]
[347567007,1735920644550,-630.43,9.593e-05,2]
[347567009,1735920644560,-236.54,9.593e-05,2]
[347567011,1735920644569,-626.51,9.593e-05,2]
[347567013,1735920644579,-500.0,9.593e-05,2]
[347567015,1735920644589,-500.0,9.593e-05,2]
[347567017,1735920644598,-507.2,9.593e-05,2]
[347567018,1735920644607,-500.0,9.593e-05,2]
[347567020,1735920644617,-500.0,9.593e-05,2]
[347567023,1735920644627,-500.0,9.593e-05,2]
[347567025,1735920644637,-500.0,9.593e-05,2]
[347567027,1735920644646,-500.0,9.593e-05,2]
[347567029,1735920644656,-500.0,9.593e-05,2]
[347567031,1735920644666,-500.0,9.593e-05,2]
[347567033,1735920644676,-500.0,9.593e-05,2]
[347567035,1735920644686,-500.0,9.593e-05,2]
[347567037,1735920644696,-500.0,9.593e-05,2]
[347567039,1735920644705,-763.22,9.593e-05,2]
[347567041,1735920644718,-500.0,9.593e-05,2]
[347567043,1735920644727,-500.0,9.593e-05,2]
[347567045,1735920644737,-500.0,9.593e-05,2]
[347567047,1735920644747,-500.0,9.593e-05,2]
[347567049,1735920644756,-500.0,9.593e-05,2]
[347567051,1735920644765,-500.0,9.593e-05,2]
[347567053,1735920644775,-500.0,9.593e-05,2]
[347567055,1735920644784,-500.0,9.593e-05,2]
[347567057,1735920644794,-500.0,9.593e-05,2]
[347567059,1735920644803,-500.0,9.593e-05,2]
[347567061,1735920644814,-500.0,9.593e-05,2]
[347567063,1735920644823,-500.0,9.593e-05,2]
[347567065,1735920644833,-500.0,9.593e-05,2]
[347567067,1735920644843,-269.93,9.593e-05,2]
[347567069,1735920644852,-768.06,9.593e-05,2]
[347567071,1735920644861,-500.0,9.593e-05,2]
[347567073,1735920644871,-1863.65,9.593e-05,2]
[347567075,1735920644880,-500.0,9.593e-05,2]
[347567077,1735920644890,-500.0,9.593e-05,2]
[347567079,1735920644900,-500.0,9.593e-05,2]
[347567081,1735920644909,-500.0,9.593e-05,2]
[347567083,1735920644919,-500.0,9.593e-05,2]
[347567085,1735920644929,-760.86,9.593e-05,2]
[347567087,1735920644939,-500.0,9.593e-05,2]
[347567089,1735920644949,-500.0,9.593e-05,2]
[347567091,1735920644959,-500.0,9.593e-05,2]
[347567093,1735920644968,-1000.0,9.593e-05,2]
[347567095,1735920644977,-500.0,9.593e-05,2]
[347567097,1735920644987,-506.52,9.593e-05,2]
[347567099,1735920644998,-500.0,9.593e-05,2]
[347567101,1735920645007,-500.0,9.593e-05,2]
[347567103,1735920645017,-500.0,9.593e-05,2]
[347567105,1735920645027,-500.0,9.593e-05,2]
[347567107,1735920645037,-660.62,9.593e-05,2]
[347567109,1735920645047,-503.72,9.593e-05,2]
[347567111,1735920645057,-500.0,9.593e-05,2]
[347567113,1735920645067,-1269.03,9.593e-05,2]
[347567115,1735920645077,-527.39,9.593e-05,2]
[347567117,1735920645087,-500.0,9.593e-05,2]
[347567119,1735920645097,-617.59,9.593e-05,2]
[347567121,1735920645106,-500.0,9.593e-05,2]
[347567123,1735920645116,-500.0,9.593e-05,2]
[347567125,1735920645125,-500.0,9.593e-05,2]
[347567127,1735920645135,-500.0,9.593e-05,2]
[347567129,1735920645145,-236.12,9.593e-05,2]
[347567156,1735920645402,-500.0,9.593e-05,2]
[347567158,1735920645414,-500.0,9.593e-05,2]
[347567159,1735920645423,-500.0,9.593e-05,2]
[347567160,1735920645433,-500.0,9.593e-05,2]
[347567161,1735920645442,-1663.26,9.593e-05,2]
[347567162,1735920645452,-500.0,9.593e-05,2]
[347567163,1735920645461,-500.0,9.593e-05,2]
[347567164,1735920645470,-500.0,9.593e-05,2]
[347567165,1735920645480,-505.06,9.593e-05,2]
[347567166,1735920645491,-500.0,9.593e-05,2]
[347567167,1735920645503,-583.96,9.593e-05,2]
[347567168,1735920645522,-682.7,9.593e-05,2]
[347567169,1735920645532,-1892.32,9.593e-05,2]
[347567171,1735920645542,-347.44,9.593e-05,2]
[347567173,1735920645552,-883.1,9.593e-05,2]
[347567175,1735920645562,-1280.93,9.742e-05,2]
[347567177,1735920645572,-795.16,9.742e-05,2]
[347567179,1735920645581,-1708.52,9.742e-05,2]
[347567181,1735920645591,-428.14,9.752e-05,2]
[347567183,1735920645602,-1324.77,9.752e-05,2]
[347567185,1735920645611,-500.0,9.752e-05,2]
[347567187,1735920645622,-1021.03,9.752e-05,2]
[347567189,1735920645633,-510.63,9.752e-05,2]
[347567190,1735920645644,-722.22,9.752e-05,2]
[347567191,1735920645653,-2712.06,9.752e-05,2]
[347567192,1735920645663,-500.0,9.752e-05,2]
[347567193,1735920645673,-500.0,9.752e-05,2]
[347567194,1735920645682,-500.0,9.752e-05,2]
[347567195,1735920645692,-593.27,9.752e-05,2]
[347567196,1735920645702,-1364.52,9.752e-05,2]
[347567197,1735920645712,-500.0,9.752e-05,2]
[347567198,1735920645722,-500.0,9.752e-05,2]
[347567199,1735920645732,-1104.94,9.752e-05,2]
[347567200,1735920645741,-713.79,9.752e-05,2]
[347567201,1735920645751,-1923.22,9.796e-05,2]
[347567202,1735920645761,-641.65,9.796e-05,2]
[347567203,1735920645770,-853.81,9.796e-05,2]
[347567204,1735920645779,-863.63,9.796e-05,2]
[347567205,1735920645789,-500.0,9.796e-05,2]
[347567207,1735920645800,-1372.66,9.796e-05,2]
[347567208,1735920645810,-628.67,9.796e-05,2]
[347567210,1735920645819,-500.0,9.796e-05,2]
[347567212,1735920645828,-499.63,9.797e-05,2]
[347567213,1735920645838,-150.0,9.858e-05,2]
[347567214,1735920645847,-204.886,9.858e-05,2]
[347567217,1735920645857,-199.236,9.858e-05,2]
[347567219,1735920645867,-154.118,9.858e-05,2]
[347567222,1735920645876,-768.1,9.864e-05,2]
[347567225,1735920645885,-500.0,9.864e-05,2]
[347567227,1735920645894,-500.0,9.864e-05,2]
[347567229,1735920645904,-788.1,9.864e-05,2]
[347567231,1735920645915,-1734.99,9.864e-05,2]
[347567234,1735920645925,-718.74,9.864e-05,2]
[347567236,1735920645934,-960.66,9.864e-05,2]
[347567238,1735920645944,-630.4,9.864e-05,2]
[347567240,1735920645953,-1183.72,9.864e-05,2]
[347567242,1735920645963,-1067.386128,9.864e-05,2]
[347567244,1735920645972,-635.82,9.864e-05,2]
[347567246,1735920645982,-1176.65,9.864e-05,2]
[347567247,1735920645992,-500.0,9.864e-05,2]
[347567248,1735920646001,-1791.62,9.864e-05,2]
[347567249,1735920646011,-519.25,9.864e-05,2]
[347567250,1735920646020,-1424.784331,9.864e-05,2]
[347567251,1735920646030,-1520.01,9.864e-05,2]
[347567252,1735920646039,-500.0,9.864e-05,2]
[347567253,1735920646049,-500.0,9.864e-05,2]
[347567254,1735920646059,-500.0,9.864e-05,2]
[347567255,1735920646068,-500.0,9.864e-05,2]
[347567256,1735920646078,-500.0,9.864e-05,2]
[347567257,1735920646087,-500.0,9.864e-05,2]
[347567258,1735920646097,-567.12,9.864e-05,2]
[347567259,1735920646107,-500.0,9.864e-05,2]
[347567260,1735920646117,-500.0,9.865e-05,2]
[347567261,1735920646127,-500.0,9.865e-05,2]
[347567262,1735920646136,-500.0,9.865e-05,2]
[347567263,1735920646147,-500.0,9.865e-05,2]
[347567264,1735920646156,-310.69,9.865e-05,2]
[347567265,1735920646169,-335.76,9.865e-05,2]
[347567266,1735920646180,-500.0,9.865e-05,2]
[347567267,1735920646190,-500.0,9.865e-05,2]
[347567268,1735920646200,-500.0,9.865e-05,2]
[347567269,1735920646209,-500.0,9.865e-05,2]
[347567270,1735920646219,-374.78,9.865e-05,2]
[347567271,1735920646229,-500.0,9.865e-05,2]
[347567272,1735920646239,-631.23547798,9.865e-05,2]
[347567273,1735920646249,-500.0,9.865e-05,2]
[347567274,1735920646259,-500.0,9.865e-05,2]
[347567275,1735920646268,-500.0,9.865e-05,2]
[347567277,1735920646278,-500.0,9.865e-05,2]
[347567279,1735920646287,-500.0,9.865e-05,2]
[347567281,1735920646296,-604.01,9.865e-05,2]
[347567283,1735920646306,-500.0,9.865e-05,2]
[347567285,1735920646315,-500.0,9.865e-05,2]
[347567287,1735920646324,-500.0,9.865e-05,2]
[347567288,1735920646333,-500.0,9.865e-05,2]
[347567290,1735920646343,-500.0,9.865e-05,2]
[347567293,1735920646353,-500.0,9.865e-05,2]
[347567295,1735920646363,-210.96,9.865e-05,2]
[347567297,1735920646373,-500.0,9.865e-05,2]
[347567299,1735920646383,-500.0,9.865e-05,2]
[347567301,1735920646393,-500.0,9.865e-05,2]
[347567303,1735920646404,-500.0,9.865e-05,2]
[347567305,1735920646415,-500.0,9.865e-05,2]
[347567307,1735920646425,-500.0,9.865e-05,2]
[347567309,1735920646435,-500.0,9.865e-05,2]
[347567311,1735920646446,-500.0,9.865e-05,2]
[347567313,1735920646455,-155.87,9.865e-05,2]
[347567315,1735920646465,-194.62,9.865e-05,2]
[347567317,1735920646475,-500.0,9.865e-05,2]
[347567319,1735920646485,-500.0,9.865e-05,2]
[347567321,1735920646494,-500.0,9.865e-05,2]
[347567323,1735920646504,-223.1,9.865e-05,2]
[347567325,1735920646514,-500.0,9.865e-05,2]
[347567327,1735920646524,-500.0,9.865e-05,2]
[347567329,1735920646533,-500.0,9.865e-05,2]
[347567331,1735920646543,-412.82,9.865e-05,2]
[347567333,1735920646552,-500.0,9.865e-05,2]
[347567335,1735920646562,-500.0,9.865e-05,2]
[347567336,1735920646571,-500.0,9.865e-05,2]
[347567338,1735920646581,-500.0,9.865e-05,2]
[347567340,1735920646590,-500.0,9.865e-05,2]
[347567343,1735920646601,-500.0,9.865e-05,2]
[347567345,1735920646610,-552.29,9.865e-05,2]
[347567347,1735920646620,-500.0,9.865e-05,2]
[347567348,1735920646630,-496.65,9.865e-05,2]
[347567350,1735920646639,-500.0,9.865e-05,2]
[347567352,1735920646650,-500.0,9.865e-05,2]
[347567354,1735920646661,-406.49149691,9.865e-05,2]
[347567357,1735920646672,-516.70602997,9.865e-05,2]
[347567359,1735920646682,-706.83,9.865e-05,2]
[347567361,1735920646691,-500.0,9.865e-05,2]
[347567363,1735920646700,-500.0,9.865e-05,2]
[347567365,1735920646710,-500.0,9.865e-05,2]
[347567367,1735920646719,-500.0,9.865e-05,2]
[347567368,1735920646728,-500.0,9.865e-05,2]
[347567371,1735920646738,-274.33,9.865e-05,2]
[347567373,1735920646747,-500.0,9.865e-05,2]
[347567375,1735920646756,-330.08,9.865e-05,2]
[347567377,1735920646766,-500.0,9.865e-05,2]
[347567379,1735920646776,-500.0,9.865e-05,2]
[347567381,1735920646785,-500.0,9.865e-05,2]
[347567383,1735920646795,-500.0,9.865e-05,2]
[347567385,1735920646804,-500.0,9.865e-05,2]
[347567387,1735920646813,-500.0,9.865e-05,2]
[347567389,1735920646822,-181.4,9.865e-05,2]
[347567391,1735920646831,-500.0,9.865e-05,2]
[347567393,1735920646841,-614.26,9.865e-05,2]
[347567395,1735920646850,-500.0,9.865e-05,2]
[347567397,1735920646859,-618.86,9.865e-05,2]
[347567398,1735920646868,-500.0,9.865e-05,2]
[347567400,1735920646878,-543.34,9.865e-05,2]
[347567402,1735920646886,-500.0,9.865e-05,2]
[347567404,1735920646895,-500.0,9.865e-05,2]
[347567407,1735920646905,-500.0,9.865e-05,2]
[347567408,1735920646915,-500.0,9.865e-05,2]
[347567411,1735920646925,-500.0,9.865e-05,2]
[347567413,1735920646934,-463.91,9.865e-05,2]
[347567414,1735920646943,-500.0,9.865e-05,2]
[347567416,1735920646952,-316.33,9.865e-05,2]
[347567418,1735920646961,-500.0,9.865e-05,2]
[347567420,1735920646970,-654.15,9.865e-05,2]
[347567422,1735920646980,-500.0,9.865e-05,2]
[347567424,1735920646990,-500.0,9.865e-05,2]
[347567426,1735920646999,-500.0,9.865e-05,2]
[347567428,1735920647009,-500.0,9.865e-05,2]
[347567430,1735920647018,-500.0,9.865e-05,2]
[347567432,1735920647027,-500.0,9.865e-05,2]
[347567434,1735920647037,-500.0,9.865e-05,2]
[347567436,1735920647046,-500.0,9.865e-05,2]
[347567438,1735920647055,-500.0,9.865e-05,2]
[347567440,1735920647064,-500.0,9.865e-05,2]
[347567443,1735920647074,-500.0,9.865e-05,2]
[347567445,1735920647084,-500.0,9.865e-05,2]
[347567447,1735920647093,-500.0,9.865e-05,2]
[347567449,1735920647102,-500.0,9.865e-05,2]
[347567451,1735920647112,-500.0,9.865e-05,2]
[347567453,1735920647122,-500.0,9.865e-05,2]
[347567455,1735920647132,-500.0,9.865e-05,2]
[347567457,1735920647142,-500.0,9.865e-05,2]
[347567459,1735920647152,-665.42,9.865e-05,2]
[347567461,1735920647164,-500.0,9.865e-05,2]
[347567463,1735920647176,-500.0,9.865e-05,2]
[347567465,1735920647186,-500.0,9.865e-05,2]
[347567467,1735920647196,-500.0,9.865e-05,2]
[347567469,1735920647206,-500.0,9.865e-05,2]
[347567471,1735920647216,-1037.06,9.865e-05,2]
[347567473,1735920647225,-153.19,9.865e-05,2]
[347567475,1735920647235,-500.0,9.865e-05,2]
[347567477,1735920647246,-500.0,9.865e-05,2]
[347567479,1735920647256,-805.79,9.865e-05,2]
[347567481,1735920647266,-3679.18,9.865e-05,2]
[347567483,1735920647275,-500.0,9.865e-05,2]
[347567485,1735920647284,-500.0,9.865e-05,2]
[347567487,1735920647293,-500.0,9.865e-05,2]
[347567489,1735920647303,-500.0,9.865e-05,2]
[347567490,1735920647312,-237.99901904,9.865e-05,2]
[347567492,1735920647321,-500.0,9.865e-05,2]
[347567494,1735920647330,-500.0,9.865e-05,2]
[347567497,1735920647340,-500.0,9.865e-05,2]
[347567499,1735920647349,-500.0,9.865e-05,2]
[347567500,1735920647362,-345.09359248,9.865e-05,2]
[347567503,1735920647372,-572.9,9.865e-05,2]
[347567504,1735920647381,-500.0,9.865e-05,2]
[347567506,1735920647391,-500.0,9.865e-05,2]
[347567508,1735920647400,-3247.25,9.865e-05,2]
[347567511,1735920647410,-500.0,9.865e-05,2]
[347567513,1735920647423,-500.0,9.865e-05,2]
[347567514,1735920647432,-264.54,9.865e-05,2]
[347567516,1735920647442,-500.0,9.865e-05,2]
[347567519,1735920647452,-500.0,9.865e-05,2]
[347567521,1735920647462,-500.0,9.865e-05,2]
[347567523,1735920647472,-500.0,9.865e-05,2]
[347567525,1735920647481,-500.0,9.865e-05,2]
[347567527,1735920647492,-500.0,9.865e-05,2]
[347567529,1735920647501,-500.0,9.865e-05,2]
[347567530,1735920647511,-500.0,9.865e-05,2]